[Event "*** SCC Grand Prix: Titled Tuesday Blitz"]
[Site "Chess.com"]
[Date "2020.09.08"]
[Round "4"]
[White "Martins-BR"]
[Black "juli2512"]
[Result "1-0"]
[WhiteElo "2265"]
[BlackElo "2034"]
[TimeControl "180+1"]
[EndTime "10:39:47 PDT"]
[Termination "Martins-BR won on time"]

1. e4 {[%clk 0:03:00.9]} 1... c5 {[%clk 0:02:59.1]} 2. Nf3 {[%clk 0:02:59.9]}
2... d6 {[%clk 0:02:58.9]} 3. d4 {[%clk 0:02:59.6]} 3... cxd4 {[%clk 0:02:59]}
4. Nxd4 {[%clk 0:03:00.5]} 4... Nf6 {[%clk 0:02:59.4]} 5. Nc3 {[%clk 0:03:00.1]}
5... Nc6 {[%clk 0:02:59.8]} 6. Bg5 {[%clk 0:02:59.5]} 6... e6 {[%clk 0:02:59.2]}
7. Qd2 {[%clk 0:02:59.6]} 7... Be7 {[%clk 0:02:59.2]} 8. O-O-O {[%clk
0:02:58.8]} 8... O-O {[%clk 0:02:58.9]} 9. f4 {[%clk 0:02:58.1]} 9... Nxd4
{[%clk 0:02:51.5]} 10. Qxd4 {[%clk 0:02:57.5]} 10... Qa5 {[%clk 0:02:39.1]} 11.
Be2 {[%clk 0:02:56.6]} 11... Rd8 {[%clk 0:02:36.2]} 12. e5 {[%clk 0:02:50.9]}
12... dxe5 {[%clk 0:02:32.2]} 13. Qxe5 {[%clk 0:02:50.9]} 13... Qb6 {[%clk
0:01:46.1]} 14. Rxd8+ {[%clk 0:02:49.3]} 14... Bxd8 {[%clk 0:01:30.8]} 15. Rd1
{[%clk 0:02:47.1]} 15... Bd7 {[%clk 0:01:12.6]} 16. Bf3 {[%clk 0:02:39]} 16...
Bc6 {[%clk 0:01:06.5]} 17. Bxc6 {[%clk 0:02:25.9]} 17... Qxc6 {[%clk 0:00:58]}
18. Qd4 {[%clk 0:02:15.2]} 18... Bb6 {[%clk 0:00:33.4]} 19. Qd2 {[%clk 0:02:04]}
19... Ne4 {[%clk 0:00:25.6]} 20. Nxe4 {[%clk 0:01:58.7]} 20... Qxe4 {[%clk
0:00:25.5]} 21. Kb1 {[%clk 0:01:58.5]} 21... h6 {[%clk 0:00:20.6]} 22. Be7
{[%clk 0:01:56.4]} 22... Be3 {[%clk 0:00:19.7]} 23. Qe2 {[%clk 0:01:47]} 23...
Qxf4 {[%clk 0:00:16.5]} 24. Rf1 {[%clk 0:01:45.9]} 24... Qd4 {[%clk 0:00:15.6]}
25. Rf3 {[%clk 0:01:35.4]} 25... Bg5 {[%clk 0:00:13.6]} 26. Bxg5 {[%clk
0:01:32.7]} 26... hxg5 {[%clk 0:00:12.5]} 27. h3 {[%clk 0:01:28.1]} 27... Qg1+
{[%clk 0:00:10.7]} 28. Rf1 {[%clk 0:01:27.1]} 28... Qd4 {[%clk 0:00:11.2]} 29.
a3 {[%clk 0:01:21.2]} 29... Rd8 {[%clk 0:00:10.5]} 30. Qf3 {[%clk 0:01:19]}
30... Rd7 {[%clk 0:00:10.2]} 31. Qg3 {[%clk 0:01:14.8]} 31... Qd5 {[%clk
0:00:08.8]} 32. Rf2 {[%clk 0:01:00.4]} 32... f6 {[%clk 0:00:06.1]} 33. Qb8+
{[%clk 0:00:57.6]} 33... Kf7 {[%clk 0:00:05.8]} 34. Qxa7 {[%clk 0:00:57.1]}
34... Qd1+ {[%clk 0:00:05.8]} 35. Ka2 {[%clk 0:00:56]} 35... Qd5+ {[%clk
0:00:06.3]} 36. b3 {[%clk 0:00:54.5]} 36... Qd1 {[%clk 0:00:04.8]} 37. Qa4
{[%clk 0:00:47.2]} 37... Rc7 {[%clk 0:00:04.1]} 38. Qe4 {[%clk 0:00:45.2]} 38...
Rd7 {[%clk 0:00:03.4]} 39. Re2 {[%clk 0:00:42.7]} 39... Rd6 {[%clk 0:00:02.7]}
40. Qxb7+ {[%clk 0:00:41.4]} 40... Kg6 {[%clk 0:00:02.9]} 41. Qe4+ {[%clk
0:00:41]} 41... Kf7 {[%clk 0:00:02.7]} 42. Kb2 {[%clk 0:00:39.7]} 1-0

[Event "*** SCC Grand Prix: Titled Tuesday Blitz"]
[Site "Chess.com"]
[Date "2020.09.08"]
[Round "4"]
[White "willc-h99"]
[Black "rududuyk"]
[Result "1-0"]
[WhiteElo "2427"]
[BlackElo "2146"]
[TimeControl "180+1"]
[EndTime "10:39:48 PDT"]
[Termination "willc-h99 won by resignation"]

1. d4 {[%clk 0:03:00.9]} 1... e6 {[%clk 0:03:00.1]} 2. Nf3 {[%clk 0:03:00.4]}
2... f5 {[%clk 0:02:59.6]} 3. g3 {[%clk 0:02:58.8]} 3... Nf6 {[%clk 0:02:59.7]}
4. Bg2 {[%clk 0:02:59.4]} 4... Be7 {[%clk 0:02:59.5]} 5. O-O {[%clk 0:03:00]}
5... O-O {[%clk 0:02:59.5]} 6. c4 {[%clk 0:03:00.7]} 6... d6 {[%clk 0:02:59.6]}
7. Nc3 {[%clk 0:03:00.3]} 7... Ne4 {[%clk 0:02:59.7]} 8. Qc2 {[%clk 0:03:00.3]}
8... Nxc3 {[%clk 0:02:59]} 9. bxc3 {[%clk 0:03:01.2]} 9... Nc6 {[%clk
0:02:56.7]} 10. e4 {[%clk 0:03:00.8]} 10... e5 {[%clk 0:02:53.8]} 11. Ba3 {[%clk
0:02:49.2]} 11... fxe4 {[%clk 0:02:37.7]} 12. Qxe4 {[%clk 0:02:48.5]} 12... Bf5
{[%clk 0:02:38.1]} 13. Qd5+ {[%clk 0:02:45.3]} 13... Kh8 {[%clk 0:02:37.6]} 14.
dxe5 {[%clk 0:02:39]} 14... dxe5 {[%clk 0:02:33.5]} 15. Qxd8 {[%clk 0:02:10.7]}
15... Raxd8 {[%clk 0:02:25]} 16. Bxe7 {[%clk 0:02:10.8]} 16... Nxe7 {[%clk
0:02:24.4]} 17. Nxe5 {[%clk 0:02:11.2]} 17... c6 {[%clk 0:02:11]} 18. Rad1
{[%clk 0:02:11.4]} 18... Kg8 {[%clk 0:02:02.8]} 19. Rfe1 {[%clk 0:02:08.6]}
19... Nc8 {[%clk 0:01:50.2]} 20. c5 {[%clk 0:02:06.3]} 20... Bc2 {[%clk
0:01:36.6]} 21. Rc1 {[%clk 0:02:02.6]} 21... Bf5 {[%clk 0:01:32.3]} 22. Bf1
{[%clk 0:01:59.4]} 22... Rfe8 {[%clk 0:01:13.9]} 23. Bc4+ {[%clk 0:01:56.2]}
23... Kf8 {[%clk 0:01:12.7]} 24. f4 {[%clk 0:01:39.3]} 24... Rd2 {[%clk
0:01:06.1]} 25. Rcd1 {[%clk 0:01:39.3]} 25... Red8 {[%clk 0:01:05.1]} 26. Rxd2
{[%clk 0:01:33]} 26... Rxd2 {[%clk 0:01:06]} 27. Re2 {[%clk 0:01:33.5]} 27...
Rd1+ {[%clk 0:00:59.8]} 28. Kg2 {[%clk 0:01:31.8]} 28... Rc1 {[%clk 0:00:56.5]}
29. Rd2 {[%clk 0:01:30.6]} 29... Rxc3 {[%clk 0:00:53.6]} 30. Rd8+ {[%clk
0:01:13.5]} 30... Ke7 {[%clk 0:00:52.2]} 31. Rg8 {[%clk 0:01:13.4]} 31... Be4+
{[%clk 0:00:43.7]} 32. Kh3 {[%clk 0:01:11.2]} 32... Bf5+ {[%clk 0:00:38.5]} 33.
Kh4 {[%clk 0:01:11.6]} 33... g6 {[%clk 0:00:34]} 34. g4 {[%clk 0:01:04.5]} 34...
Rxc4 {[%clk 0:00:21.8]} 35. Nxc4 {[%clk 0:00:57.3]} 35... Be6 {[%clk 0:00:21.6]}
36. Rh8 {[%clk 0:00:52.4]} 36... Bxc4 {[%clk 0:00:20]} 37. Rxc8 {[%clk
0:00:52.2]} 37... Bxa2 {[%clk 0:00:20.3]} 38. Rc7+ {[%clk 0:00:52.5]} 38... Ke6
{[%clk 0:00:19.6]} 39. Rxb7 {[%clk 0:00:53.4]} 39... a6 {[%clk 0:00:16.3]} 40.
Rxh7 {[%clk 0:00:52.9]} 40... Bc4 {[%clk 0:00:13.8]} 41. Rh6 {[%clk 0:00:47.8]}
41... Bd3 {[%clk 0:00:13.6]} 42. f5+ {[%clk 0:00:47.4]} 42... Kd5 {[%clk
0:00:11.6]} 43. fxg6 {[%clk 0:00:45.1]} 43... Kxc5 {[%clk 0:00:11.9]} 44. g7
{[%clk 0:00:45.2]} 44... Bc4 {[%clk 0:00:12.4]} 45. Rh8 {[%clk 0:00:43]} 45...
a5 {[%clk 0:00:12.4]} 46. g8=Q {[%clk 0:00:43.5]} 46... Bxg8 {[%clk 0:00:12.4]}
47. Rxg8 {[%clk 0:00:44.4]} 47... a4 {[%clk 0:00:12.8]} 48. Ra8 {[%clk
0:00:44.1]} 48... Kb4 {[%clk 0:00:13.2]} 49. g5 {[%clk 0:00:44.7]} 49... c5
{[%clk 0:00:12.7]} 50. g6 {[%clk 0:00:45.4]} 50... c4 {[%clk 0:00:13.2]} 51. g7
{[%clk 0:00:46.2]} 51... c3 {[%clk 0:00:13.7]} 52. g8=Q {[%clk 0:00:46.8]} 52...
c2 {[%clk 0:00:13.7]} 53. Qg1 {[%clk 0:00:40.9]} 1-0

[Event "*** SCC Grand Prix: Titled Tuesday Blitz"]
[Site "Chess.com"]
[Date "2020.09.08"]
[Round "4"]
[White "fireheart92"]
[Black "poummba"]
[Result "1-0"]
[WhiteElo "2862"]
[BlackElo "2531"]
[TimeControl "180+1"]
[EndTime "10:39:51 PDT"]
[Termination "fireheart92 won on time"]

1. b3 {[%clk 0:03:00.9]} 1... g6 {[%clk 0:02:53.6]} 2. Bb2 {[%clk 0:03:00.4]}
2... Nf6 {[%clk 0:02:53.6]} 3. g4 {[%clk 0:02:52.7]} 3... Bg7 {[%clk 0:02:46.8]}
4. g5 {[%clk 0:02:52.6]} 4... Nh5 {[%clk 0:02:47]} 5. Bxg7 {[%clk 0:02:53.2]}
5... Nxg7 {[%clk 0:02:47.9]} 6. Nf3 {[%clk 0:02:53.3]} 6... h6 {[%clk
0:02:43.3]} 7. gxh6 {[%clk 0:02:48.7]} 7... Rxh6 {[%clk 0:02:42.9]} 8. Qc1
{[%clk 0:02:48.7]} 8... d6 {[%clk 0:02:36.4]} 9. Qb2 {[%clk 0:02:48.2]} 9... Kf8
{[%clk 0:02:32.9]} 10. d3 {[%clk 0:02:39.1]} 10... e5 {[%clk 0:02:22.8]} 11.
Nbd2 {[%clk 0:02:38]} 11... Nc6 {[%clk 0:02:20.2]} 12. h4 {[%clk 0:02:33.4]}
12... Kg8 {[%clk 0:02:14]} 13. O-O-O {[%clk 0:02:32.3]} 13... Bg4 {[%clk
0:02:06.7]} 14. Rg1 {[%clk 0:02:25.3]} 14... Qd7 {[%clk 0:01:56.2]} 15. d4
{[%clk 0:02:16.6]} 15... Bxf3 {[%clk 0:01:47]} 16. Nxf3 {[%clk 0:02:15.4]} 16...
e4 {[%clk 0:01:45.6]} 17. Ng5 {[%clk 0:02:14.9]} 17... Rxh4 {[%clk 0:01:35.9]}
18. d5 {[%clk 0:02:03.1]} 18... Ne5 {[%clk 0:01:34.5]} 19. Qc3 {[%clk 0:01:59]}
19... Nf5 {[%clk 0:01:20.3]} 20. Bh3 {[%clk 0:01:53.1]} 20... Kg7 {[%clk
0:00:51.6]} 21. Bxf5 {[%clk 0:01:38.7]} 21... Qxf5 {[%clk 0:00:50.2]} 22. Qxc7
{[%clk 0:01:30.6]} 22... Qd7 {[%clk 0:00:39.4]} 23. Qc3 {[%clk 0:00:58.8]} 23...
Rc8 {[%clk 0:00:38.4]} 24. Qd4 {[%clk 0:00:51.3]} 24... Qc7 {[%clk 0:00:22.2]}
25. Rd2 {[%clk 0:00:42.3]} 25... Qc3 {[%clk 0:00:21.7]} 26. Qxc3 {[%clk
0:00:40.5]} 26... Rxc3 {[%clk 0:00:21.6]} 27. Kb2 {[%clk 0:00:40.2]} 27... Rc5
{[%clk 0:00:16.2]} 28. c4 {[%clk 0:00:40.3]} 28... b5 {[%clk 0:00:15.1]} 29.
cxb5 {[%clk 0:00:40.1]} 29... Rxb5 {[%clk 0:00:15.7]} 30. Rd4 {[%clk 0:00:39.9]}
30... f5 {[%clk 0:00:07]} 31. Ne6+ {[%clk 0:00:36.9]} 31... Kf6 {[%clk
0:00:07.3]} 32. a4 {[%clk 0:00:33.2]} 32... Rb8 {[%clk 0:00:05.3]} 33. f4 {[%clk
0:00:29]} 33... exf3 {[%clk 0:00:04.7]} 34. Rxh4 {[%clk 0:00:28.4]} 34... fxe2
{[%clk 0:00:04.9]} 35. Rh3 {[%clk 0:00:23.4]} 35... g5 {[%clk 0:00:01.2]} 36.
Rh6+ {[%clk 0:00:21.9]} 1-0

[Event "*** SCC Grand Prix: Titled Tuesday Blitz"]
[Site "Chess.com"]
[Date "2020.09.08"]
[Round "4"]
[White "Anton_Demchenko"]
[Black "Ba_clbaf_osed_ingo_3v21"]
[Result "1-0"]
[WhiteElo "2855"]
[BlackElo "2528"]
[TimeControl "180+1"]
[EndTime "10:39:52 PDT"]
[Termination "Anton_Demchenko won on time"]

1. e4 {[%clk 0:03:00.9]} 1... c5 {[%clk 0:02:59.3]} 2. Nf3 {[%clk 0:03:00.6]}
2... d6 {[%clk 0:02:58.5]} 3. d4 {[%clk 0:03:00.3]} 3... cxd4 {[%clk 0:02:59.4]}
4. Nxd4 {[%clk 0:03:01.2]} 4... Nf6 {[%clk 0:03:00]} 5. Nc3 {[%clk 0:03:01.7]}
5... a6 {[%clk 0:03:00.6]} 6. Be2 {[%clk 0:02:55.6]} 6... e5 {[%clk 0:03:00.4]}
7. Nb3 {[%clk 0:02:55.7]} 7... Be7 {[%clk 0:03:00.2]} 8. Be3 {[%clk 0:02:54.8]}
8... Be6 {[%clk 0:02:58.6]} 9. Qd3 {[%clk 0:02:53.1]} 9... Nbd7 {[%clk 0:02:56]}
10. Nd5 {[%clk 0:02:52.7]} 10... Bxd5 {[%clk 0:02:54.5]} 11. exd5 {[%clk
0:02:52.7]} 11... O-O {[%clk 0:02:55.1]} 12. g4 {[%clk 0:02:52.4]} 12... Rc8
{[%clk 0:02:45.1]} 13. g5 {[%clk 0:02:47.9]} 13... Ne8 {[%clk 0:02:44]} 14. h4
{[%clk 0:02:47.3]} 14... b5 {[%clk 0:02:40.4]} 15. a4 {[%clk 0:02:32.1]} 15...
Qc7 {[%clk 0:01:37]} 16. axb5 {[%clk 0:02:28.4]} 16... axb5 {[%clk 0:01:36.6]}
17. c3 {[%clk 0:02:20.3]} 17... Nc5 {[%clk 0:01:20.1]} 18. Nxc5 {[%clk
0:02:17.9]} 18... dxc5 {[%clk 0:01:21]} 19. Qxb5 {[%clk 0:02:15.8]} 19... Nd6
{[%clk 0:01:21.2]} 20. Qd3 {[%clk 0:02:09.1]} 20... c4 {[%clk 0:01:20.8]} 21.
Qc2 {[%clk 0:02:08.7]} 21... Qb7 {[%clk 0:01:20.1]} 22. Bf3 {[%clk 0:02:01.7]}
22... Rfe8 {[%clk 0:01:15.1]} 23. Ra7 {[%clk 0:01:47.8]} 23... Qb5 {[%clk
0:01:10.9]} 24. O-O {[%clk 0:01:38.5]} 24... e4 {[%clk 0:01:07.6]} 25. Bg4
{[%clk 0:01:30.6]} 25... Rcd8 {[%clk 0:00:48]} 26. Rd1 {[%clk 0:01:28]} 26...
Nb7 {[%clk 0:00:26.9]} 27. Qa4 {[%clk 0:01:11.1]} 27... Qxb2 {[%clk 0:00:26.8]}
28. Qxc4 {[%clk 0:00:57.1]} 28... Nd6 {[%clk 0:00:26.8]} 29. Qc6 {[%clk
0:00:40.2]} 29... Qc2 {[%clk 0:00:17.8]} 30. Rc1 {[%clk 0:00:24.9]} 30... Qd3
{[%clk 0:00:04.9]} 31. c4 {[%clk 0:00:25]} 31... f5 {[%clk 0:00:01.2]} 32. gxf6
{[%clk 0:00:24.8]} 32... Bxf6 {[%clk 0:00:01.6]} 33. Rd7 {[%clk 0:00:22.8]}
33... Nf7 {[%clk 0:00:01.2]} 34. Be6 {[%clk 0:00:21.3]} 1-0

[Event "*** SCC Grand Prix: Titled Tuesday Blitz"]
[Site "Chess.com"]
[Date "2020.09.08"]
[Round "4"]
[White "Larina_Marija"]
[Black "MarceloPlaya"]
[Result "1-0"]
[WhiteElo "2092"]
[BlackElo "2354"]
[TimeControl "180+1"]
[EndTime "10:39:52 PDT"]
[Termination "Larina_Marija won by resignation"]

1. e4 {[%clk 0:03:00.9]} 1... e6 {[%clk 0:02:59.4]} 2. d4 {[%clk 0:03:00.5]}
2... d5 {[%clk 0:02:59.5]} 3. Nc3 {[%clk 0:02:59.4]} 3... Bb4 {[%clk 0:02:59.2]}
4. exd5 {[%clk 0:02:57.9]} 4... exd5 {[%clk 0:02:57.2]} 5. Bd3 {[%clk
0:02:57.3]} 5... Nf6 {[%clk 0:02:56.4]} 6. Ne2 {[%clk 0:02:55.5]} 6... Be6
{[%clk 0:02:55.8]} 7. O-O {[%clk 0:02:53.1]} 7... Nc6 {[%clk 0:02:55.6]} 8. h3
{[%clk 0:02:42.7]} 8... Qd7 {[%clk 0:02:54.4]} 9. Bf4 {[%clk 0:02:17.6]} 9...
Bd6 {[%clk 0:02:44.1]} 10. Qd2 {[%clk 0:02:13.2]} 10... O-O-O {[%clk 0:02:38.3]}
11. Bxd6 {[%clk 0:02:10.1]} 11... Qxd6 {[%clk 0:02:36.6]} 12. Nb5 {[%clk
0:02:08.9]} 12... Qd7 {[%clk 0:02:32.6]} 13. a4 {[%clk 0:02:02.9]} 13... Kb8
{[%clk 0:02:30]} 14. a5 {[%clk 0:02:01]} 14... Rdg8 {[%clk 0:02:24.9]} 15. a6
{[%clk 0:01:55]} 15... b6 {[%clk 0:02:22.8]} 16. Nf4 {[%clk 0:01:42.8]} 16... g5
{[%clk 0:02:19.2]} 17. Nxe6 {[%clk 0:01:40.6]} 17... fxe6 {[%clk 0:02:18.8]} 18.
Rfe1 {[%clk 0:01:24]} 18... h5 {[%clk 0:02:14.8]} 19. Qe3 {[%clk 0:01:17.9]}
19... Nd8 {[%clk 0:02:05.8]} 20. c4 {[%clk 0:01:14.4]} 20... h4 {[%clk
0:02:00.5]} 21. c5 {[%clk 0:01:08.6]} 21... g4 {[%clk 0:01:09.5]} 22. cxb6
{[%clk 0:01:07]} 22... axb6 {[%clk 0:01:09.4]} 23. a7+ {[%clk 0:01:05.7]} 23...
Ka8 {[%clk 0:01:09]} 24. Qe5 {[%clk 0:00:52.5]} 24... Ne8 {[%clk 0:01:03.8]} 25.
hxg4 {[%clk 0:00:48.6]} 25... h3 {[%clk 0:00:57.2]} 26. gxh3 {[%clk 0:00:33.3]}
26... Rxh3 {[%clk 0:00:52.9]} 27. Kg2 {[%clk 0:00:31.8]} 27... Rh4 {[%clk
0:00:45.2]} 28. f3 {[%clk 0:00:30]} 28... Nd6 {[%clk 0:00:43.5]} 29. Nxd6 {[%clk
0:00:27.3]} 29... cxd6 {[%clk 0:00:43]} 30. Qg3 {[%clk 0:00:25.2]} 30... Rgh8
{[%clk 0:00:40.9]} 31. Rh1 {[%clk 0:00:24.1]} 31... Rxh1 {[%clk 0:00:38.3]} 32.
Rxh1 {[%clk 0:00:24.9]} 32... Rxh1 {[%clk 0:00:38.1]} 33. Kxh1 {[%clk
0:00:24.5]} 33... Kxa7 {[%clk 0:00:37.2]} 34. Kg2 {[%clk 0:00:23]} 34... Kb7
{[%clk 0:00:35.5]} 35. g5 {[%clk 0:00:21.9]} 35... Kc6 {[%clk 0:00:32.6]} 36. g6
{[%clk 0:00:21.9]} 36... Qg7 {[%clk 0:00:32.2]} 37. Qg5 {[%clk 0:00:17.8]} 37...
e5 {[%clk 0:00:30.4]} 38. Qxd8 {[%clk 0:00:17.2]} 38... e4 {[%clk 0:00:30.2]}
39. Qc8+ {[%clk 0:00:16.2]} 39... Qc7 {[%clk 0:00:24.2]} 40. Qxc7+ {[%clk
0:00:16.2]} 40... Kxc7 {[%clk 0:00:24.2]} 41. fxe4 {[%clk 0:00:16.3]} 41... dxe4
{[%clk 0:00:24.4]} 42. Bxe4 {[%clk 0:00:16.9]} 1-0

[Event "*** SCC Grand Prix: Titled Tuesday Blitz"]
[Site "Chess.com"]
[Date "2020.09.08"]
[Round "4"]
[White "PSvidler"]
[Black "DenLaz"]
[Result "1/2-1/2"]
[WhiteElo "2922"]
[BlackElo "2748"]
[TimeControl "180+1"]
[EndTime "10:39:55 PDT"]
[Termination "Game drawn by agreement"]

1. e4 {[%clk 0:03:00.9]} 1... e5 {[%clk 0:02:59]} 2. Nf3 {[%clk 0:03:00.6]} 2...
Nc6 {[%clk 0:02:59.3]} 3. Bb5 {[%clk 0:03:00]} 3... a6 {[%clk 0:02:59.6]} 4. Ba4
{[%clk 0:03:00.1]} 4... Nf6 {[%clk 0:02:57.8]} 5. O-O {[%clk 0:03:00.2]} 5...
Be7 {[%clk 0:02:57.9]} 6. d3 {[%clk 0:02:59.9]} 6... b5 {[%clk 0:02:55.5]} 7.
Bb3 {[%clk 0:02:59.8]} 7... d6 {[%clk 0:02:56.1]} 8. a4 {[%clk 0:02:58.3]} 8...
Bg4 {[%clk 0:02:54.7]} 9. c3 {[%clk 0:02:57.8]} 9... O-O {[%clk 0:02:53.6]} 10.
h3 {[%clk 0:02:57.7]} 10... Bxf3 {[%clk 0:02:53.7]} 11. Qxf3 {[%clk 0:02:57.5]}
11... Na5 {[%clk 0:02:54.3]} 12. Bc2 {[%clk 0:02:56.5]} 12... b4 {[%clk
0:02:51.8]} 13. Be3 {[%clk 0:02:40.5]} 13... Rb8 {[%clk 0:02:42.9]} 14. Nd2
{[%clk 0:02:40.1]} 14... c5 {[%clk 0:02:39.3]} 15. Qe2 {[%clk 0:02:32.2]} 15...
bxc3 {[%clk 0:02:32.8]} 16. bxc3 {[%clk 0:02:32.3]} 16... Rb2 {[%clk 0:02:33.4]}
17. Nf3 {[%clk 0:02:24.8]} 17... Qd7 {[%clk 0:02:01.7]} 18. Rfb1 {[%clk
0:02:15.1]} 18... Rfb8 {[%clk 0:01:57.2]} 19. Rxb2 {[%clk 0:02:11.5]} 19... Rxb2
{[%clk 0:01:56.7]} 20. Bc1 {[%clk 0:02:12.2]} 20... Rb6 {[%clk 0:01:50.1]} 21.
d4 {[%clk 0:02:02.1]} 21... cxd4 {[%clk 0:01:35.6]} 22. cxd4 {[%clk 0:02:02.2]}
22... Qc7 {[%clk 0:01:31.6]} 23. Be3 {[%clk 0:01:34.6]} 23... Rb2 {[%clk
0:01:24.8]} 24. Rc1 {[%clk 0:00:47.5]} 24... Nb3 {[%clk 0:00:49.8]} 25. Bxb3
{[%clk 0:00:47.2]} 25... Qxc1+ {[%clk 0:00:48.7]} 26. Bxc1 {[%clk 0:00:48.1]}
26... Rxe2 {[%clk 0:00:49.4]} 27. Kf1 {[%clk 0:00:48.8]} 27... Rxe4 {[%clk
0:00:46.7]} 28. Bc2 {[%clk 0:00:49.4]} 28... Kf8 {[%clk 0:00:27.4]} 29. Bxe4
{[%clk 0:00:44.3]} 29... Nxe4 {[%clk 0:00:28.3]} 30. dxe5 {[%clk 0:00:44.9]}
30... dxe5 {[%clk 0:00:21.7]} 31. Nxe5 {[%clk 0:00:40.6]} 31... Nc5 {[%clk
0:00:21.7]} 32. Ke2 {[%clk 0:00:37.1]} 32... Nxa4 {[%clk 0:00:20.4]} 33. Nc6
{[%clk 0:00:36.6]} 33... Nc3+ {[%clk 0:00:19.7]} 34. Kd3 {[%clk 0:00:36.5]}
34... Nd5 {[%clk 0:00:20.2]} 35. Kc4 {[%clk 0:00:35.5]} 35... Nf6 {[%clk
0:00:19.5]} 36. Be3 {[%clk 0:00:31.6]} 36... Ke8 {[%clk 0:00:19.1]} 37. Nb8
{[%clk 0:00:30.4]} 37... a5 {[%clk 0:00:18.4]} 38. Kb5 {[%clk 0:00:31]} 38...
Nd5 {[%clk 0:00:15.8]} 39. Bd4 {[%clk 0:00:30.8]} 39... f6 {[%clk 0:00:12.7]}
40. Nc6 {[%clk 0:00:30.6]} 40... Bb4 {[%clk 0:00:11.1]} 41. g3 {[%clk
0:00:28.4]} 41... Kd7 {[%clk 0:00:10.6]} 42. Nxa5 {[%clk 0:00:28.2]} 42... Bxa5
{[%clk 0:00:10.4]} 43. Kxa5 {[%clk 0:00:27.6]} 43... Kc6 {[%clk 0:00:10.5]} 44.
Ka4 {[%clk 0:00:27.1]} 44... Nc7 {[%clk 0:00:10]} 1/2-1/2

[Event "*** SCC Grand Prix: Titled Tuesday Blitz"]
[Site "Chess.com"]
[Date "2020.09.08"]
[Round "4"]
[White "SeedToTree"]
[Black "chessmachine14"]
[Result "1-0"]
[WhiteElo "2614"]
[BlackElo "2353"]
[TimeControl "180+1"]
[EndTime "10:39:55 PDT"]
[Termination "SeedToTree won on time"]

1. e4 {[%clk 0:03:00.9]} 1... c5 {[%clk 0:02:59.6]} 2. Nc3 {[%clk 0:03:00.2]}
2... Nc6 {[%clk 0:02:58.7]} 3. f4 {[%clk 0:02:58.8]} 3... d6 {[%clk 0:02:54.9]}
4. Nf3 {[%clk 0:02:58.8]} 4... g6 {[%clk 0:02:51.6]} 5. Bb5 {[%clk 0:02:58.5]}
5... Bg7 {[%clk 0:02:48.8]} 6. O-O {[%clk 0:02:57.5]} 6... Bd7 {[%clk
0:02:46.9]} 7. d3 {[%clk 0:02:57.3]} 7... Nd4 {[%clk 0:02:46.6]} 8. Bxd7+ {[%clk
0:02:56.6]} 8... Qxd7 {[%clk 0:02:47.5]} 9. Ne2 {[%clk 0:02:52]} 9... Nxf3+
{[%clk 0:02:34.1]} 10. Rxf3 {[%clk 0:02:51.9]} 10... Nh6 {[%clk 0:02:30.5]} 11.
c3 {[%clk 0:02:38.7]} 11... O-O {[%clk 0:02:29.7]} 12. f5 {[%clk 0:02:38.1]}
12... Ng4 {[%clk 0:02:26.1]} 13. Rg3 {[%clk 0:02:31]} 13... gxf5 {[%clk
0:02:14.9]} 14. Nf4 {[%clk 0:02:29.1]} 14... Kh8 {[%clk 0:02:05.8]} 15. Qf3
{[%clk 0:02:20.9]} 15... Rg8 {[%clk 0:01:44.7]} 16. Rh3 {[%clk 0:02:13.1]} 16...
Be5 {[%clk 0:01:36.4]} 17. Bd2 {[%clk 0:01:52.9]} 17... Rg7 {[%clk 0:00:50.4]}
18. Nh5 {[%clk 0:01:50.2]} 18... fxe4 {[%clk 0:00:44]} 19. dxe4 {[%clk
0:01:45.7]} 19... Rag8 {[%clk 0:00:30.6]} 20. Nxg7 {[%clk 0:01:45.2]} 20... Rxg7
{[%clk 0:00:31.5]} 21. Rf1 {[%clk 0:01:43.3]} 21... Qe6 {[%clk 0:00:30.8]} 22.
b3 {[%clk 0:01:31.7]} 22... Qd7 {[%clk 0:00:16.6]} 23. Kh1 {[%clk 0:01:26.6]}
23... c4 {[%clk 0:00:14.2]} 24. Rh4 {[%clk 0:01:05.7]} 24... Qe6 {[%clk
0:00:13.5]} 25. bxc4 {[%clk 0:01:04.4]} 25... Qxc4 {[%clk 0:00:13.3]} 26. Qf5
{[%clk 0:00:56.5]} 26... Nf6 {[%clk 0:00:10.3]} 27. Bh6 {[%clk 0:00:49.9]} 27...
Rg6 {[%clk 0:00:10.4]} 28. g3 {[%clk 0:00:37.8]} 28... Qe2 {[%clk 0:00:09.9]}
29. Qf2 {[%clk 0:00:35.9]} 29... Qd3 {[%clk 0:00:07.8]} 30. Qf3 {[%clk
0:00:34.9]} 30... Qc2 {[%clk 0:00:06.9]} 31. Rf2 {[%clk 0:00:35.3]} 31... Qb1+
{[%clk 0:00:06.4]} 32. Kg2 {[%clk 0:00:35.7]} 32... Qb5 {[%clk 0:00:03.2]} 33.
Bf4 {[%clk 0:00:35]} 33... Bxf4 {[%clk 0:00:02.9]} 34. Rxf4 {[%clk 0:00:35.2]}
34... Qe5 {[%clk 0:00:01.8]} 35. Rf5 {[%clk 0:00:35.1]} 35... Qe6 {[%clk
0:00:01.4]} 36. Re2 {[%clk 0:00:34.3]} 36... b6 {[%clk 0:00:01.8]} 37. e5 {[%clk
0:00:34.6]} 37... dxe5 {[%clk 0:00:02]} 38. Rfxe5 {[%clk 0:00:35.2]} 38... Qd6
{[%clk 0:00:01.8]} 39. Rxe7 {[%clk 0:00:35.2]} 39... Kg7 {[%clk 0:00:02.7]} 40.
Rxa7 {[%clk 0:00:34.5]} 40... Qc5 {[%clk 0:00:02.6]} 41. Ree7 {[%clk 0:00:33.8]}
41... Qxc3 {[%clk 0:00:01.4]} 42. Rxf7+ {[%clk 0:00:34.1]} 42... Kh6 {[%clk
0:00:01.5]} 43. Qf4+ {[%clk 0:00:34.2]} 1-0